[Event "WSCC 65 Women 2017"]
[Site "?"]
[Date "2017.11.10"]
[Round "4"]
[White "Gaprindashvili, Nona"]
[Black "Khmiadashvili, Tamar"]
[Result "0-1"]
[ECO "D30"]
[WhiteElo "2306"]
[BlackElo "1982"]
[PlyCount "58"]
[EventDate "2017.??.??"]
[EventType "swiss"]
[EventCountry "ITA"]
[SourceTitle "Acqui Terme"]
[TimeControl "40/5400+30:1800+30"]
[WhiteClock "0:20:44"]
[BlackClock "0:07:59"]

1. d4 {[%emt 0:00:00]} d5 {[%emt 0:00:11]} 2. c4 {[%emt 0:00:00]} e6 {[%emt 0:00:06]} 3. Nf3 {[%emt 0:00:00]} Nf6 {[%emt 0:00:14]} 4. Bg5 {[%emt 0:00:13]} Bb4+ {[%emt 0:00:39]} 5. Nc3 {[%emt 0:00:08]} h6 {[%emt 0:00:52]} 6. Bxf6 {[%emt 0:01:30]} Qxf6 {[%emt 0:00:52]} 7. Qb3 {[%emt 0:01:23]} Nc6 {[%emt 0:07:54]} 8. e3 {[%emt 0:02:34]} O-O {[%emt 0:12:42]} 9. a3 {[%emt 0:08:28]} dxc4 {[%emt 0:04:31]} 10. Bxc4 {[%emt 0:06:27]} Bd6 {[%emt 0:02:38]} 11. Bd3 {[%emt 0:14:54]} e5 {[%emt 0:04:05]} 12. d5 {[%emt 0:02:25]} Nd8 {[%emt 0:02:50]} 13. Qc4 {[%emt 0:06:20]} Qe7 {[%emt 0:03:41]} 14. g4 {[%emt 0:04:22]} a6 {[%emt 0:05:11]} 15. Rg1 {[%emt 0:08:22]} b5 {[%emt 0:02:12]} 16. Qe4 {[%emt 0:03:56]} f5 {[%emt 0:00:55]} 17. gxf5 {[%emt 0:00:14]} Bxf5 {[%emt 0:00:48]} 18. Qxf5 {[%emt 0:00:01]} Rxf5 {[%emt 0:00:08]} 19. Bxf5 {[%emt 0:00:18]} b4 {[%emt 0:05:31]} 20. axb4 {[%emt 0:00:24]} Bxb4 {[%emt 0:00:04]} 21. Kf1 {[%emt 0:10:48]} Bxc3 {[%emt 0:11:59]} 22. bxc3 {[%emt 0:00:02]} Qc5 {[%emt 0:01:30]} 23. Rd1 {[%emt 0:00:10]} Nf7 {[%emt 0:08:35]} 24. Rg6 {[%emt 0:01:32]} Nd6 {[%emt 0:03:26]} 25. Be6+ {[%emt 0:00:47]} Kh7 {[%emt 0:00:26]} 26. Nxe5 {[%emt 0:00:14]} Qxc3 {[%emt 0:00:42]} 27. Rd4 {[%emt 0:01:12]} Rf8 {[%emt 0:10:59]} 28. Rg3 {[%emt 0:01:26]} Nf5 {[%emt 0:02:50]} 29. Rf3 {[%emt 0:05:36]} Nxd4 0-1

[Event "WSCC 65 Women 2017"]
[Site "?"]
[Date "2017.11.10"]
[Round "4"]
[White "Titorenko, Natalia I"]
[Black "Fatalibekova, Elena"]
[Result "1/2-1/2"]
[ECO "B33"]
[WhiteElo "2146"]
[BlackElo "2202"]
[PlyCount "26"]
[EventDate "2017.??.??"]
[EventType "swiss"]
[EventCountry "ITA"]
[SourceTitle "Acqui Terme"]
[TimeControl "40/5400+30:1800+30"]
[WhiteClock "1:25:56"]
[BlackClock "1:27:56"]

1. e4 {[%emt 0:00:00]} c5 {[%emt 0:00:17]} 2. Nf3 {[%emt 0:00:08]} e6 {[%emt 0:00:29]} 3. d4 {[%emt 0:00:19]} cxd4 {[%emt 0:00:13]} 4. Nxd4 {[%emt 0:00:25]} Nf6 {[%emt 0:00:27]} 5. Nc3 {[%emt 0:00:42]} Nc6 {[%emt 0:00:40]} 6. Ndb5 {[%emt 0:00:56]} d6 {[%emt 0:00:42]} 7. Bf4 {[%emt 0:01:19]} e5 {[%emt 0:01:45]} 8. Bg5 {[%emt 0:01:17]} a6 {[%emt 0:01:00]} 9. Na3 {[%emt 0:00:34]} b5 {[%emt 0:00:31]} 10. Nd5 {[%emt 0:01:02]} Qa5+ {[%emt 0:00:57]} 11. Bd2 {[%emt 0:01:18]} Qd8 {[%emt 0:00:47]} 12. Bg5 {[%emt 0:01:27]} Qa5+ {[%emt 0:01:05]} 13. Bd2 {[%emt 0:01:07]} Qd8 {[%emt 0:00:11]} 1/2-1/2

[Event "WSCC 65 Women 2017"]
[Site "?"]
[Date "2017.11.11"]
[Round "4"]
[White "Sorokina, Tamara"]
[Black "Iskichekova, Nadezhda"]
[Result "1/2-1/2"]
[ECO "D12"]
[WhiteElo "2055"]
[BlackElo "1726"]
[PlyCount "170"]
[EventDate "2017.??.??"]
[EventType "swiss"]
[EventCountry "ITA"]
[SourceTitle "Acqui Terme"]
[TimeControl "40/5400+30:1800+30"]
[WhiteClock "0:04:28"]
[BlackClock "0:07:03"]

1. Nf3 {[%emt 0:00:00]} Nf6 {[%emt 0:00:18]} 2. c4 {[%emt 0:00:00]} c6 {[%emt 0:00:17]} 3. d4 {[%emt 0:00:15]} d5 {[%emt 0:00:10]} 4. e3 {[%emt 0:00:06]} Bf5 {[%emt 0:01:31]} 5. Nc3 {[%emt 0:00:07]} e6 {[%emt 0:00:22]} 6. Be2 {[%emt 0:00:57]} Bd6 {[%emt 0:02:51]} 7. Nh4 {[%emt 0:04:56]} Be4 {[%emt 0:06:06]} 8. Nf3 {[%emt 0:04:55]} Nbd7 {[%emt 0:03:38]} 9. a3 {[%emt 0:00:51]} Bxf3 {[%emt 0:02:00]} 10. gxf3 {[%emt 0:00:48]} dxc4 {[%emt 0:04:55]} 11. Bxc4 {[%emt 0:00:22]} Nb6 {[%emt 0:09:49]} 12. Bb3 {[%emt 0:03:57]} O-O {[%emt 0:01:33]} 13. e4 {[%emt 0:00:50]} Nh5 {[%emt 0:07:10]} 14. e5 {[%emt 0:02:45]} Be7 {[%emt 0:02:34]} 15. f4 {[%emt 0:00:35]} g6 {[%emt 0:00:04]} 16. Be3 {[%emt 0:01:20]} Ng7 {[%emt 0:00:59]} 17. Qe2 {[%emt 0:02:41]} Nd5 {[%emt 0:00:28]} 18. Nxd5 {[%emt 0:03:23]} cxd5 {[%emt 0:00:23]} 19. O-O {[%emt 0:00:46]} Qb6 {[%emt 0:02:24]} 20. Qd3 {[%emt 0:01:06]} Nf5 {[%emt 0:00:26]} 21. Rac1 {[%emt 0:03:41]} Rac8 {[%emt 0:00:35]} 22. Rc3 {[%emt 0:01:52]} Rxc3 {[%emt 0:04:21]} 23. Qxc3 {[%emt 0:00:02]} Qc6 {[%emt 0:00:38]} 24. Qd3 {[%emt 0:08:11]} Qd7 {[%emt 0:04:50]} 25. Bd1 {[%emt 0:01:46]} Rc8 {[%emt 0:00:44]} 26. Be2 {[%emt 0:02:01]} a6 {[%emt 0:01:38]} 27. Bd2 {[%emt 0:02:00]} Qa4 {[%emt 0:01:18]} 28. Bc3 {[%emt 0:01:14]} Qb3 {[%emt 0:00:34]} 29. Ra1 {[%emt 0:07:47]} h5 {[%emt 0:02:11]} 30. Qd2 {[%emt 0:05:50]} Kg7 {[%emt 0:01:20]} 31. Bd3 {[%emt 0:04:14]} Nh4 {[%emt 0:00:33]} 32. Qe2 {[%emt 0:01:03]} Rc6 {[%emt 0:09:14]} 33. h3 {[%emt 0:05:19]} b5 {[%emt 0:03:17]} 34. Kh2 {[%emt 0:02:00]} Rc8 {[%emt 0:07:07]} 35. Bc2 {[%emt 0:07:39]} Qc4 {[%emt 0:00:05]} 36. Qxc4 {[%emt 0:00:29]} bxc4 {[%emt 0:00:22]} 37. Kg3 {[%emt 0:00:25]} Nf5+ {[%emt 0:00:53]} 38. Bxf5 {[%emt 0:00:10]} gxf5 {[%emt 0:00:44]} 39. Kf3 {[%emt 0:00:35]} Rb8 {[%emt 0:01:01]} 40. Ke3 {[%emt 0:00:15]} Rb3 {[%emt 0:30:40]} 41. Kd2 {[%emt 0:32:10]} f6 {[%emt 0:00:46]} 42. exf6+ {[%emt 0:00:56]} Kxf6 {[%emt 0:01:32]} 43. Rg1 {[%emt 0:01:48]} Kf7 {[%emt 0:00:23]} 44. Rg2 {[%emt 0:01:06]} Bd6 {[%emt 0:00:21]} 45. Rg1 {[%emt 0:02:13]} Bxf4+ {[%emt 0:00:52]} 46. Kc2 {[%emt 0:00:07]} Rb8 {[%emt 0:02:37]} 47. Rb1 {[%emt 0:01:52]} Kf6 {[%emt 0:01:34]} 48. b4 {[%emt 0:00:29]} cxb3+ {[%emt 0:00:10]} 49. Rxb3 {[%emt 0:00:02]} Rxb3 {[%emt 0:03:17]} 50. Kxb3 {[%emt 0:00:02]} e5 {[%emt 0:00:24]} 51. Kb4 {[%emt 0:00:09]} exd4 {[%emt 0:00:17]} 52. Bxd4+ {[%emt 0:00:07]} Be5 {[%emt 0:00:01]} 53. Bc5 {[%emt 0:00:54]} Ke6 {[%emt 0:01:42]} 54. Ka5 {[%emt 0:01:30]} Bd6 {[%emt 0:00:51]} 55. Bd4 {[%emt 0:01:13]} Bxa3 {[%emt 0:00:26]} 56. Kxa6 {[%emt 0:00:08]} Kd6 {[%emt 0:01:04]} 57. Kb5 {[%emt 0:00:06]} f4 {[%emt 0:02:07]} 58. f3 {[%emt 0:00:46]} Bc1 {[%emt 0:00:47]} 59. Kb4 {[%emt 0:00:24]} Kc6 {[%emt 0:00:41]} 60. Kc3 {[%emt 0:00:27]} Kb5 {[%emt 0:00:27]} 61. Kd3 {[%emt 0:00:10]} Kb4 {[%emt 0:01:25]} 62. Bf6 {[%emt 0:01:16]} Kb3 {[%emt 0:01:15]} 63. Be7 {[%emt 0:00:25]} Be3 {[%emt 0:01:02]} 64. Bf6 {[%emt 0:00:35]} Ka2 {[%emt 0:00:40]} 65. Bd4 {[%emt 0:00:29]} Bc1 {[%emt 0:00:18]} 66. Kc2 {[%emt 0:00:26]} Ba3 {[%emt 0:01:39]} 67. Be5 {[%emt 0:00:06]} Bc5 {[%emt 0:01:05]} 68. Bxf4 {[%emt 0:00:06]} Ka3 {[%emt 0:00:07]} 69. Kd3 {[%emt 0:00:09]} Kb4 {[%emt 0:00:06]} 70. Be5 {[%emt 0:00:47]} Kb5 {[%emt 0:00:14]} 71. f4 {[%emt 0:01:09]} Kc6 {[%emt 0:00:04]} 72. f5 {[%emt 0:00:47]} Kd7 {[%emt 0:00:12]} 73. Ke2 {[%emt 0:04:07]} Ke7 {[%emt 0:00:39]} 74. Kf3 {[%emt 0:00:30]} Kf7 {[%emt 0:01:31]} 75. Kf4 {[%emt 0:01:09]} Be7 {[%emt 0:00:16]} 76. Bd4 {[%emt 0:01:40]} Bf6 {[%emt 0:02:32]} 77. Bc5 {[%emt 0:00:26]} Kg7 {[%emt 0:00:40]} 78. Bd6 {[%emt 0:00:26]} Kf7 {[%emt 0:00:22]} 79. Bc7 {[%emt 0:00:21]} Ke7 {[%emt 0:00:14]} 80. Be5 {[%emt 0:00:43]} Kf7 {[%emt 0:00:01]} 81. Bd6 {[%emt 0:01:59]} Kg7 {[%emt 0:00:14]} 82. Kf3 {[%emt 0:01:13]} Kh6 {[%emt 0:00:43]} 83. Bf4+ {[%emt 0:00:24]} Kg7 {[%emt 0:00:01]} 84. Bd2 {[%emt 0:03:35]} Kf7 {[%emt 0:00:12]} 85. Kf4 {[%emt 0:01:22]} Kg7 {[%emt 0:00:03]} 1/2-1/2

[Event "WSCC 65 Women 2017"]
[Site "?"]
[Date "2017.11.11"]
[Round "4"]
[White "Khmiadashvili, Tamar"]
[Black "Titorenko, Natalia I"]
[Result "1/2-1/2"]
[ECO "D01"]
[WhiteElo "1982"]
[BlackElo "2146"]
[PlyCount "71"]
[EventDate "2017.??.??"]
[EventType "swiss"]
[EventCountry "ITA"]
[SourceTitle "Acqui Terme"]
[TimeControl "40/5400+30:1800+30"]
[WhiteClock "0:02:47"]
[BlackClock "0:02:38"]

1. d4 {[%emt 0:00:00]} d5 {[%emt 0:00:06]} 2. Nc3 {[%emt 0:00:00]} Nf6 {[%emt 0:01:23]} 3. Bg5 {[%emt 0:00:19]} Nbd7 {[%emt 0:03:37]} 4. e3 {[%emt 0:00:24]} c6 {[%emt 0:01:47]} 5. Bd3 {[%emt 0:02:18]} e5 {[%emt 0:08:42]} 6. Bf5 {[%emt 0:00:57]} Be7 {[%emt 0:04:56]} 7. Bxd7+ {[%emt 0:17:00]} Nxd7 {[%emt 0:00:19]} 8. Bxe7 {[%emt 0:00:15]} Qxe7 {[%emt 0:00:10]} 9. dxe5 {[%emt 0:01:49]} Nxe5 {[%emt 0:00:22]} 10. Qd4 {[%emt 0:00:53]} O-O {[%emt 0:04:21]} 11. Nf3 {[%emt 0:08:50]} Re8 {[%emt 0:07:16]} 12. Nxe5 {[%emt 0:00:21]} Qxe5 {[%emt 0:00:04]} 13. O-O-O {[%emt 0:03:12]} Bf5 {[%emt 0:24:59]} 14. Qxe5 {[%emt 0:09:00]} Rxe5 {[%emt 0:00:04]} 15. Rd4 {[%emt 0:00:08]} Rae8 {[%emt 0:06:51]} 16. Rhd1 {[%emt 0:06:53]} h5 {[%emt 0:01:43]} 17. a4 {[%emt 0:04:40]} a5 {[%emt 0:03:52]} 18. b4 {[%emt 0:00:56]} axb4 {[%emt 0:03:40]} 19. Rxb4 {[%emt 0:00:09]} R5e7 {[%emt 0:02:53]} 20. Kb2 {[%emt 0:05:55]} g6 {[%emt 0:04:33]} 21. a5 {[%emt 0:00:49]} Ra8 {[%emt 0:04:13]} 22. Ra1 {[%emt 0:02:39]} Rd7 {[%emt 0:05:17]} 23. Rb6 {[%emt 0:11:25]} c5 {[%emt 0:02:26]} 24. Nb5 {[%emt 0:03:20]} Ra6 {[%emt 0:01:42]} 25. Kc3 {[%emt 0:03:34]} Kg7 {[%emt 0:03:40]} 26. Ra4 {[%emt 0:04:28]} Be6 {[%emt 0:00:01]} 27. Kd2 {[%emt 0:04:00]} Kf8 {[%emt 0:01:10]} 28. Ra1 {[%emt 0:02:59]} Ke7 {[%emt 0:00:08]} 29. c3 {[%emt 0:01:47]} Kd8 {[%emt 0:02:03]} 30. f3 {[%emt 0:01:07]} Kc8 {[%emt 0:01:21]} 31. Ra4 {[%emt 0:01:00]} Rd8 {[%emt 0:00:27]} 32. Ra1 {[%emt 0:01:13]} Rd7 {[%emt 0:00:25]} 33. h4 {[%emt 0:00:30]} Kb8 {[%emt 0:00:31]} 34. Rxa6 {[%emt 0:01:48]} bxa6 {[%emt 0:00:02]} 35. Na3 {[%emt 0:00:05]} Rb7 {[%emt 0:00:18]} 36. Rb1 1/2-1/2

[Event "WSCC 65 Women 2017"]
[Site "?"]
[Date "2017.11.14"]
[Round "6"]
[White "Sorokina, Tamara"]
[Black "Kabanova, Irina"]
[Result "1/2-1/2"]
[ECO "A05"]
[WhiteElo "2055"]
[BlackElo "1816"]
[PlyCount "61"]
[EventDate "2017.??.??"]
[EventType "swiss"]
[EventCountry "ITA"]
[SourceTitle "Acqui Terme"]
[TimeControl "40/5400+30:1800+30"]
[WhiteClock "0:53:42"]
[BlackClock "0:44:08"]

1. Nf3 {[%emt 0:00:00]} Nf6 {[%emt 0:00:11]} 2. d4 {[%emt 0:00:00]} e6 {[%emt 0:00:13]} 3. Nbd2 {[%emt 0:00:00]} d5 {[%emt 0:00:37]} 4. e3 {[%emt 0:00:00]} Nbd7 {[%emt 0:01:32]} 5. Bd3 {[%emt 0:00:01]} c5 {[%emt 0:01:02]} 6. c3 {[%emt 0:00:06]} Bd6 {[%emt 0:00:42]} 7. O-O {[%emt 0:00:06]} O-O {[%emt 0:01:39]} 8. Qe2 {[%emt 0:00:32]} a6 {[%emt 0:00:51]} 9. e4 {[%emt 0:00:13]} dxe4 {[%emt 0:01:08]} 10. Nxe4 {[%emt 0:00:08]} Nxe4 {[%emt 0:01:51]} 11. Bxe4 {[%emt 0:00:12]} h6 {[%emt 0:01:57]} 12. Rd1 {[%emt 0:03:36]} cxd4 {[%emt 0:04:15]} 13. Nxd4 {[%emt 0:00:28]} Qe7 {[%emt 0:04:59]} 14. Bc2 {[%emt 0:02:53]} Nf6 {[%emt 0:02:18]} 15. h3 {[%emt 0:03:01]} e5 {[%emt 0:05:33]} 16. Nf5 {[%emt 0:00:33]} Bxf5 {[%emt 0:00:17]} 17. Bxf5 {[%emt 0:00:03]} e4 {[%emt 0:00:19]} 18. Bg4 {[%emt 0:11:12]} h5 {[%emt 0:06:06]} 19. Bxh5 {[%emt 0:00:13]} Qe5 {[%emt 0:01:09]} 20. Rxd6 {[%emt 0:03:09]} Qxd6 {[%emt 0:01:08]} 21. Be3 {[%emt 0:00:43]} Nxh5 {[%emt 0:03:04]} 22. Qxh5 {[%emt 0:00:03]} Rfe8 {[%emt 0:04:14]} 23. Bd4 {[%emt 0:00:22]} Re6 {[%emt 0:03:19]} 24. Qg4 {[%emt 0:02:32]} Rg6 {[%emt 0:01:06]} 25. Qxe4 {[%emt 0:00:28]} Qd7 {[%emt 0:00:33]} 26. b3 {[%emt 0:08:23]} Re8 {[%emt 0:00:56]} 27. Qf3 {[%emt 0:00:06]} b5 {[%emt 0:03:47]} 28. b4 {[%emt 0:00:56]} Rge6 {[%emt 0:04:25]} 29. Qg3 {[%emt 0:00:33]} Rg6 {[%emt 0:00:05]} 30. Qf3 {[%emt 0:04:48]} Rge6 {[%emt 0:02:06]} 31. Qg3 {[%emt 0:06:28]} 1/2-1/2

[Event "WSCC 65 Women 2017"]
[Site "?"]
[Date "2017.11.14"]
[Round "6"]
[White "Khmiadashvili, Tamar"]
[Black "Fatalibekova, Elena"]
[Result "1/2-1/2"]
[ECO "A45"]
[WhiteElo "1982"]
[BlackElo "2202"]
[PlyCount "77"]
[EventDate "2017.??.??"]
[EventType "swiss"]
[EventCountry "ITA"]
[SourceTitle "Acqui Terme"]
[TimeControl "40/5400+30:1800+30"]
[WhiteClock "0:02:20"]
[BlackClock "0:08:59"]

1. d4 {[%emt 0:00:02]} Nf6 {[%emt 0:00:07]} 2. c3 {[%emt 0:00:25]} b6 {[%emt 0:00:32]} 3. Bg5 {[%emt 0:00:41]} Bb7 {[%emt 0:01:25]} 4. Nd2 {[%emt 0:00:49]} e6 {[%emt 0:02:05]} 5. Ngf3 {[%emt 0:03:36]} Be7 {[%emt 0:01:58]} 6. e3 {[%emt 0:01:00]} h6 {[%emt 0:00:29]} 7. Bxf6 {[%emt 0:03:55]} Bxf6 {[%emt 0:00:08]} 8. Qc2 {[%emt 0:02:58]} d5 {[%emt 0:10:28]} 9. Bd3 {[%emt 0:03:48]} Nd7 {[%emt 0:04:22]} 10. e4 {[%emt 0:02:41]} dxe4 {[%emt 0:06:00]} 11. Bxe4 {[%emt 0:00:18]} Qc8 {[%emt 0:00:56]} 12. O-O {[%emt 0:08:38]} O-O {[%emt 0:00:19]} 13. Rfe1 {[%emt 0:01:25]} c5 {[%emt 0:01:39]} 14. Bxb7 {[%emt 0:03:55]} Qxb7 {[%emt 0:00:02]} 15. Qe4 {[%emt 0:05:09]} Rab8 {[%emt 0:02:57]} 16. Rad1 {[%emt 0:11:00]} cxd4 {[%emt 0:02:42]} 17. Nxd4 {[%emt 0:01:24]} Nc5 {[%emt 0:00:56]} 18. Qxb7 {[%emt 0:01:41]} Rxb7 {[%emt 0:00:01]} 19. N2b3 {[%emt 0:15:41]} Na4 {[%emt 0:02:09]} 20. Rb1 {[%emt 0:02:46]} Rd8 {[%emt 0:01:00]} 21. Kf1 {[%emt 0:01:18]} Rd5 {[%emt 0:03:51]} 22. Nc2 {[%emt 0:03:39]} Rbd7 {[%emt 0:06:36]} 23. Ne3 {[%emt 0:03:43]} Rh5 {[%emt 0:10:59]} 24. h3 {[%emt 0:00:18]} g6 {[%emt 0:01:23]} 25. Red1 {[%emt 0:02:41]} Rxd1+ {[%emt 0:00:11]} 26. Nxd1 {[%emt 0:00:05]} Rb5 {[%emt 0:05:21]} 27. Rc1 {[%emt 0:03:53]} Rd5 {[%emt 0:00:57]} 28. Ne3 {[%emt 0:00:35]} Rd8 {[%emt 0:01:11]} 29. Rc2 {[%emt 0:00:25]} Kf8 {[%emt 0:05:54]} 30. Ke2 {[%emt 0:00:40]} Ke7 {[%emt 0:00:08]} 31. g3 {[%emt 0:02:09]} g5 {[%emt 0:00:54]} 32. Nd1 {[%emt 0:02:43]} Be5 {[%emt 0:05:41]} 33. Rd2 {[%emt 0:00:42]} Rxd2+ {[%emt 0:01:23]} 34. Nxd2 {[%emt 0:00:43]} b5 {[%emt 0:00:59]} 35. Kd3 {[%emt 0:04:41]} f5 {[%emt 0:03:31]} 36. g4 {[%emt 0:01:31]} Nc5+ {[%emt 0:02:54]} 37. Ke2 {[%emt 0:01:10]} Bf4 {[%emt 0:01:30]} 38. f3 {[%emt 0:03:08]} a6 {[%emt 0:06:53]} 39. b3 {[%emt 0:01:14]} 1/2-1/2

[Event "WSCC 65 Women 2017"]
[Site "?"]
[Date "2017.11.15"]
[Round "7"]
[White "Fatalibekova, Elena"]
[Black "Gaprindashvili, Nona"]
[Result "1/2-1/2"]
[ECO "B00"]
[WhiteElo "2202"]
[BlackElo "2306"]
[PlyCount "66"]
[EventDate "2017.??.??"]
[EventType "swiss"]
[EventCountry "ITA"]
[SourceTitle "Acqui Terme"]
[TimeControl "40/5400+30:1800+30"]
[WhiteClock "0:44:40"]
[BlackClock "0:42:42"]

1. e4 {[%emt 0:00:00]} b6 {[%emt 0:00:09]} 2. d4 {[%emt 0:00:00]} Bb7 {[%emt 0:00:01]} 3. Bd3 {[%emt 0:00:00]} g6 {[%emt 0:00:38]} 4. Nf3 {[%emt 0:00:23]} Bg7 {[%emt 0:00:09]} 5. O-O e6 {[%emt 0:02:25]} 6. c4 {[%emt 0:00:29]} d6 {[%emt 0:01:33]} 7. Nc3 {[%emt 0:00:08]} Ne7 {[%emt 0:00:34]} 8. Be3 {[%emt 0:05:16]} O-O {[%emt 0:02:23]} 9. Qd2 {[%emt 0:00:29]} c5 {[%emt 0:01:30]} 10. d5 {[%emt 0:00:43]} e5 {[%emt 0:00:11]} 11. Bh6 {[%emt 0:00:15]} Nd7 {[%emt 0:01:08]} 12. a4 {[%emt 0:01:38]} a5 {[%emt 0:01:22]} 13. Nb5 {[%emt 0:01:27]} Nf6 {[%emt 0:04:20]} 14. Rfe1 {[%emt 0:04:33]} Bc8 {[%emt 0:02:57]} 15. Ra3 {[%emt 0:00:20]} Ng4 {[%emt 0:03:35]} 16. Bxg7 {[%emt 0:00:38]} Kxg7 {[%emt 0:00:01]} 17. h3 {[%emt 0:04:32]} Nh6 {[%emt 0:00:59]} 18. Bc2 {[%emt 0:03:32]} f6 {[%emt 0:00:23]} 19. Nh2 {[%emt 0:06:13]} Nf7 {[%emt 0:13:01]} 20. Rf1 {[%emt 0:02:00]} g5 {[%emt 0:02:31]} 21. Bd1 {[%emt 0:01:05]} Ng6 {[%emt 0:02:05]} 22. Bg4 {[%emt 0:00:35]} Nf4 {[%emt 0:01:06]} 23. Bxc8 {[%emt 0:00:41]} Qxc8 {[%emt 0:00:02]} 24. Ng4 {[%emt 0:00:26]} f5 {[%emt 0:01:48]} 25. exf5 {[%emt 0:06:48]} Qxf5 {[%emt 0:00:03]} 26. Ne3 {[%emt 0:08:13]} Qd7 {[%emt 0:01:00]} 27. Nc3 {[%emt 0:04:35]} h6 {[%emt 0:03:19]} 28. Ne4 {[%emt 0:01:09]} Nh8 {[%emt 0:00:16]} 29. Qd1 {[%emt 0:02:45]} Rad8 {[%emt 0:09:49]} 30. Qg4 {[%emt 0:00:45]} Qxg4 {[%emt 0:00:33]} 31. hxg4 {[%emt 0:00:15]} Ne2+ {[%emt 0:00:02]} 32. Kh2 {[%emt 0:00:32]} Nd4 {[%emt 0:01:43]} 33. Ng3 {[%emt 0:01:25]} Kf6 {[%emt 0:02:42]} 1/2-1/2

[Event "WSCC 65 Women 2017"]
[Site "?"]
[Date "2017.11.15"]
[Round "7"]
[White "Sorokina, Tamara"]
[Black "Khmiadashvili, Tamar"]
[Result "1/2-1/2"]
[ECO "A05"]
[WhiteElo "2055"]
[BlackElo "1982"]
[PlyCount "41"]
[EventDate "2017.??.??"]
[EventType "swiss"]
[EventCountry "ITA"]
[SourceTitle "Acqui Terme"]
[TimeControl "40/5400+30:1800+30"]
[WhiteClock "0:46:08"]
[BlackClock "0:22:44"]

1. Nf3 {[%emt 0:00:00]} Nf6 {[%emt 0:00:18]} 2. c4 {[%emt 0:00:00]} d6 3. g3 {[%emt 0:00:47]} e5 {[%emt 0:01:32]} 4. d3 Be7 {[%emt 0:00:56]} 5. Bg2 {[%emt 0:00:40]} O-O {[%emt 0:01:19]} 6. O-O {[%emt 0:00:16]} a5 {[%emt 0:07:29]} 7. Nc3 {[%emt 0:01:14]} c6 {[%emt 0:03:21]} 8. a3 {[%emt 0:04:01]} Nbd7 {[%emt 0:05:13]} 9. Qc2 {[%emt 0:05:13]} Ne8 {[%emt 0:10:08]} 10. d4 {[%emt 0:02:12]} f5 {[%emt 0:11:34]} 11. e3 {[%emt 0:11:08]} e4 {[%emt 0:03:15]} 12. Ne1 {[%emt 0:00:34]} Nef6 {[%emt 0:05:40]} 13. f3 {[%emt 0:00:58]} exf3 {[%emt 0:09:41]} 14. Nxf3 {[%emt 0:00:31]} Nb6 {[%emt 0:01:22]} 15. b3 {[%emt 0:03:06]} a4 {[%emt 0:04:25]} 16. Nxa4 {[%emt 0:01:31]} Nxa4 {[%emt 0:00:05]} 17. bxa4 {[%emt 0:00:05]} Qa5 {[%emt 0:01:45]} 18. Bb2 {[%emt 0:09:42]} Qxa4 {[%emt 0:00:40]} 19. Qd3 {[%emt 0:03:31]} Bd7 {[%emt 0:07:13]} 20. Nd2 {[%emt 0:02:15]} d5 {[%emt 0:01:50]} 21. Rfc1 {[%emt 0:06:38]} 1/2-1/2

[Event "WSCC 65 Women 2017"]
[Site "?"]
[Date "2017.11.15"]
[Round "7"]
[White "Kabanova, Irina"]
[Black "Titorenko, Natalia I"]
[Result "1-0"]
[ECO "B07"]
[WhiteElo "1816"]
[BlackElo "2146"]
[PlyCount "100"]
[EventDate "2017.??.??"]
[EventType "swiss"]
[EventCountry "ITA"]
[SourceTitle "Acqui Terme"]
[TimeControl "40/5400+30:1800+30"]
[WhiteClock "0:44:25"]
[BlackClock "0:30:23"]

1. e4 {[%emt 0:00:00]} d6 {[%emt 0:00:03]} 2. d4 {[%emt 0:00:00]} Nf6 {[%emt 0:00:05]} 3. Nc3 {[%emt 0:00:05]} g6 {[%emt 0:00:08]} 4. f3 {[%emt 0:00:32]} Bg7 {[%emt 0:00:42]} 5. Be3 c6 {[%emt 0:03:27]} 6. Qd2 {[%emt 0:01:14]} h6 {[%emt 0:02:18]} 7. Bd3 {[%emt 0:05:40]} a5 {[%emt 0:08:25]} 8. a3 {[%emt 0:02:50]} Nbd7 {[%emt 0:07:35]} 9. Nge2 {[%emt 0:04:41]} Rb8 {[%emt 0:18:52]} 10. Nd1 {[%emt 0:08:03]} b5 {[%emt 0:03:18]} 11. b4 {[%emt 0:04:04]} Ra8 {[%emt 0:03:08]} 12. Qc1 {[%emt 0:01:53]} axb4 {[%emt 0:02:13]} 13. axb4 {[%emt 0:00:10]} Rxa1 {[%emt 0:00:16]} 14. Qxa1 {[%emt 0:00:14]} O-O {[%emt 0:00:18]} 15. O-O {[%emt 0:00:09]} Nb6 {[%emt 0:07:59]} 16. Nb2 {[%emt 0:01:31]} Qc7 {[%emt 0:04:30]} 17. c3 {[%emt 0:02:53]} Be6 {[%emt 0:01:22]} 18. Qc1 {[%emt 0:00:48]} Kh7 {[%emt 0:00:27]} 19. Qc2 {[%emt 0:04:20]} Ra8 {[%emt 0:00:42]} 20. Nf4 {[%emt 0:00:23]} Bc4 {[%emt 0:01:54]} 21. Bxc4 {[%emt 0:00:46]} bxc4 {[%emt 0:00:32]} 22. Ne2 {[%emt 0:15:20]} Nfd7 {[%emt 0:04:29]} 23. f4 {[%emt 0:01:16]} Ra2 {[%emt 0:00:40]} 24. Nc1 {[%emt 0:00:46]} Ra3 {[%emt 0:00:16]} 25. Ne2 {[%emt 0:02:04]} Ra2 {[%emt 0:19:16]} 26. Nc1 {[%emt 0:00:48]} Ra3 {[%emt 0:00:47]} 27. Ne2 {[%emt 0:00:13]} Kg8 {[%emt 0:04:08]} 28. Qd2 {[%emt 0:09:09]} Nf6 {[%emt 0:01:29]} 29. Qc2 {[%emt 0:00:08]} d5 {[%emt 0:00:38]} 30. e5 {[%emt 0:03:09]} Ne4 {[%emt 0:00:04]} 31. f5 {[%emt 0:02:29]} g5 {[%emt 0:00:58]} 32. Bd2 {[%emt 0:07:03]} Ra2 {[%emt 0:01:32]} 33. Nc1 {[%emt 0:00:19]} Ra1 {[%emt 0:01:10]} 34. Ne2 {[%emt 0:06:38]} Rxf1+ {[%emt 0:00:10]} 35. Kxf1 {[%emt 0:00:08]} f6 {[%emt 0:00:07]} 36. e6 {[%emt 0:00:47]} Qxh2 {[%emt 0:00:02]} 37. Ng1 {[%emt 0:00:48]} Qh4 {[%emt 0:00:50]} 38. Be1 {[%emt 0:00:25]} Qg4 {[%emt 0:00:08]} 39. Nf3 {[%emt 0:05:14]} Qxf5 {[%emt 0:00:01]} 40. Kg1 {[%emt 0:00:19]} Qxe6 {[%emt 0:30:07]} 41. Na4 {[%emt 0:30:27]} Nxa4 {[%emt 0:00:37]} 42. Qxa4 {[%emt 0:00:02]} Kf7 {[%emt 0:04:08]} 43. b5 {[%emt 0:00:20]} cxb5 {[%emt 0:00:16]} 44. Qxb5 {[%emt 0:00:02]} Nd6 {[%emt 0:01:44]} 45. Qc6 {[%emt 0:00:58]} g4 {[%emt 0:00:21]} 46. Bg3 {[%emt 0:01:22]} gxf3 {[%emt 0:00:03]} 47. gxf3 {[%emt 0:00:19]} Qe3+ {[%emt 0:00:45]} 48. Kg2 {[%emt 0:00:10]} Qe2+ {[%emt 0:00:46]} 49. Kg1 {[%emt 0:00:20]} Qxf3 {[%emt 0:00:00]} 50. Bxd6 {[%emt 0:00:00]} Qe3+ {[%emt 0:00:00] Kf2} 1-0